bitfinex-derivatives/quotes_ETHF0:USTF0_20241129
["timestamp","ask_amount","ask_price","bid_price","bid_amount"]
[1732884970395,3.2078,3585.0,3584.9,2.10882]
[1732884970895,0.00632258,3585.4,3585.3,0.27879]
[1732884971095,0.00632258,3585.4,3585.3,1.74879]
[1732884972396,0.00632258,3585.4,3585.3,42.54879]
[1732884973605,3.2078,3586.1,3585.3,44.82152994]
[1732884973808,3.48653,3586.1,3586.0,0.27873]
[1732884974599,3.2078,3586.1,3585.6,0.6969]
[1732884974799,0.27874,3586.0,3585.9,0.27873]
[1732884975408,0.27875,3585.9,3585.8,0.27874]
[1732884977217,3.2078,3586.1,3585.4,4.33575]
[1732884977413,0.27874,3586.0,3585.9,0.27873]
[1732884981118,0.27876,3585.9,3585.8,0.27874]
[1732884982220,3.2078,3585.9,3585.3,40.8]
[1732884982521,0.27875,3585.8,3585.7,0.27875]
[1732884982722,3.2078,3585.9,3585.5,0.27876]
[1732884982723,0.27878,3585.6,3585.5,0.27876]
[1732884982913,0.27878,3585.5,3585.4,0.27877]
[1732884983417,0.27878,3585.5,3585.4,0.78877]
[1732884986230,0.27878,3585.5,3585.4,0.51]
[1732884986721,0.27878,3585.5,3585.4,0.78878]
[1732884987117,3.48658,3585.5,3585.4,0.51]
[1732884987327,3.48658,3585.5,3585.4,0.78878]
[1732884987729,3.2078,3585.5,3585.4,0.78878]
[1732884988021,0.27876,3585.8,3585.7,0.27875]
[1732884988328,0.27876,3585.8,3585.7,41.07875]
[1732884988523,3.2078,3585.9,3585.7,40.8]
[1732884988724,3.48654,3585.9,3585.8,0.68625]
[1732884988927,3.48654,3585.9,3585.8,1.12145]
[1732884989327,0.911,3586.1,3585.8,0.8427]
[1732884989530,0.27874,3586.0,3585.9,0.27873]
[1732884991124,0.27871,3586.3,3586.2,0.27872]
[1732884991320,0.27871,3586.3,3586.2,1.42872]
[1732884992228,1.95222,3586.6,3586.5,0.27869]
[1732884993033,2.23091,3586.6,3586.5,0.27869]
[1732884993431,1.95222,3586.6,3586.4,0.4131]
[1732884993728,0.27872,3586.2,3586.1,0.27871]
[1732884993933,0.27872,3586.2,3586.1,0.88871]
[1732884994125,0.27872,3586.3,3586.2,0.27871]
[1732884994726,3.9245,3586.5,3586.4,0.2787]
[1732884996832,0.27871,3586.4,3586.3,0.2787]
[1732884997229,0.27872,3586.3,3586.2,0.27871]
[1732884999329,0.27872,3586.3,3585.9,1.10995]
[1732884999330,0.27873,3586.0,3585.9,0.69183]
[1732884999532,0.27873,3586.0,3585.9,1.32183]
[1732884999728,1.23202659,3586.3,3585.9,1.32183]
[1732885000028,0.27873,3586.0,3585.9,1.32183]
[1732885000232,0.27873,3586.0,3585.9,1.0431]
[1732885000423,3.48653,3586.0,3585.9,0.63]
[1732885000631,0.27878,3585.8,3585.7,40.8]
[1732885000932,0.27878,3585.8,3585.7,41.07878]
[1732885001130,0.27878,3585.8,3585.7,40.8]
[1732885006131,3.48658,3585.8,3585.7,40.8]
[1732885006834,3.48658,3585.8,3585.7,41.07878]
[1732885007442,3.48658,3585.8,3585.7,40.8]
[1732885008137,3.48658,3585.8,3585.7,41.07878]
[1732885008334,3.2078,3585.8,3585.7,41.07878]
[1732885009241,0.27873,3586.5,3586.4,0.27872]
[1732885010237,5.16002,3586.6,3586.1,1.12518]
[1732885010437,5.16002,3586.6,3586.5,0.27872]
[1732885011136,5.43873,3586.6,3586.5,0.27872]
[1732885011741,5.16002,3586.6,3586.5,0.27872]
[1732885011943,5.43873,3586.6,3586.5,0.27872]
[1732885012445,5.16002,3586.6,3586.5,0.27872]
[1732885014144,1.95222,3586.6,3586.5,0.27872]
[1732885014342,1.95222,3586.6,3586.5,0.41872]
[1732885015148,1.95222,3586.6,3586.5,41.21872]
[1732885023844,1.45222,3586.6,3586.5,41.21872]
[1732885024245,0.95602,3586.6,3586.5,41.21872]
[1732885026153,0.95602,3586.6,3586.5,42.45012928]
[1732885027650,0.45602,3586.6,3586.5,42.45012928]
[1732885029651,0.45602,3586.6,3586.5,41.21872]
[1732885029948,1.96613928,3586.6,3586.5,0.14]
[1732885030151,1.96613928,3586.6,3586.5,0.41872]
[1732885030349,0.73473,3586.6,3586.5,0.41872]
[1732885030547,1.96613928,3586.6,3586.5,0.14]
[1732885030850,0.73473,3586.6,3586.5,0.14]
[1732885033058,0.27874,3586.4,3586.3,0.27873]
[1732885033559,0.45602,3586.6,3586.2,40.8]
[1732885033859,3.48654,3586.3,3586.2,40.8]
[1732885034858,3.48654,3586.3,3585.6,0.4086]
[1732885034859,0.27875,3586.2,3586.1,0.27874]
[1732885035052,0.27877,3586.0,3585.9,0.27876]
[1732885035259,0.27877,3586.0,3585.9,41.07876]
[1732885037057,0.27876,3586.1,3586.0,0.27875]
[1732885037761,0.27876,3586.0,3585.9,41.07876]
[1732885039063,0.27876,3586.1,3586.0,0.27875]
[1732885040065,0.27876,3586.0,3585.9,41.07876]
[1732885044461,8.0310633,3586.2,3585.9,40.8]
[1732885044660,10.8076633,3586.3,3586.2,0.27874]
[1732885044864,3.2078,3586.3,3586.2,0.27874]
[1732885045169,3.48654,3586.3,3586.2,0.27874]
[1732885045367,3.2078,3586.3,3586.2,0.27874]
[1732885045867,3.48654,3586.3,3586.2,0.27874]
[1732885047965,3.2078,3586.3,3586.2,0.27874]
[1732885048572,0.45602,3586.6,3586.5,0.27872]
[1732885048773,0.45602,3586.6,3586.5,0.85872]
[1732885051976,3.2078,3586.8,3586.7,0.27871]
[1732885052271,0.27867,3587.2,3587.1,0.27867]
[1732885054383,1.23155824,3587.2,3586.9,0.4473]
[1732885054582,1.51023824,3587.0,3586.9,0.72599]
[1732885057086,0.27868,3587.0,3586.9,0.72599]
[1732885057285,7.8785333,3587.2,3587.1,0.27867]
[1732885057486,0.27867,3587.2,3587.1,0.27867]
[1732885058382,10.8076633,3587.3,3586.9,0.4473]
[1732885058582,3.48646,3587.3,3587.2,0.27867]
[1732885058883,3.2078,3587.3,3587.2,0.27867]
[1732885059189,3.48646,3587.3,3587.2,0.27867]
[1732885059483,3.2078,3587.3,3587.2,0.27867]
[1732885059889,7.8785033,3587.6,3587.5,0.27864]
[1732885060084,3.48644,3587.6,3587.5,0.27864]
[1732885060886,3.48644,3587.6,3587.3,0.27865]
[1732885060887,3.2078,3587.6,3587.3,0.27865]
[1732885061093,1.51020824,3587.5,3587.4,0.27864]
[1732885061287,0.27865,3587.5,3587.4,0.27864]
[1732885062294,0.27866,3587.4,3587.3,0.27865]
[1732885062487,1.23155824,3587.5,3586.9,0.4473]
[1732885062787,3.2078,3587.6,3586.9,2.19885824]
[1732885062991,0.27866,3587.5,3587.4,0.27864]
[1732885063187,3.48644,3587.6,3587.5,0.27864]
[1732885063488,4.71799824,3587.6,3587.5,0.27864]
[1732885063887,0.27866,3587.4,3587.3,0.27865]
[1732885064692,3.2078,3587.6,3587.2,0.27867]
[1732885064894,3.2078,3587.6,3587.5,0.27864]
[1732885067992,0.27863,3587.7,3587.6,0.27864]
[1732885068190,3.2078,3587.7,3587.6,0.27864]
[1732885068390,3.48643,3587.7,3587.6,0.27864]
[1732885068892,3.2078,3587.7,3587.6,0.27864]
[1732885070396,4.71798824,3587.7,3587.6,0.27864]
[1732885070795,3.2078,3587.7,3587.6,0.27864]
[1732885073097,7.5998633,3588.0,3587.8,0.27862]
[1732885073298,7.5998633,3588.0,3587.9,0.27861]
[1732885073299,7.8784833,3588.0,3587.9,0.27861]
[1732885074804,7.5998633,3588.0,3587.5,2.42715824]
[1732885075001,0.27863,3587.8,3587.7,0.27861]
[1732885076002,1.51017824,3587.9,3587.8,0.27862]
[1732885076997,0.27864,3587.7,3587.6,0.27863]
[1732885077294,0.27864,3587.6,3587.5,0.77764]
[1732885077499,0.70004,3587.6,3587.5,0.77764]
[1732885077890,0.70004,3587.6,3587.5,0.499]
[1732885078196,1.93159824,3587.6,3587.5,0.499]
[1732885079094,0.70004,3587.6,3587.5,0.77764]
[1732885079297,3.2078,3587.7,3587.6,0.27864]
[1732885079504,3.2078,3587.7,3587.6,1.15284]
[1732885079801,3.2078,3587.7,3587.6,1.59934]
[1732885081598,0.27862,3587.9,3587.6,1.3207]
[1732885081895,0.27862,3587.9,3587.8,0.27862]
[1732885082291,3.2078,3588.1,3587.8,1.23155824]
[1732885082493,3.2078,3588.1,3588.0,0.2786]
[1732885082700,3.4864,3588.1,3588.0,0.2786]
[1732885082899,7.5998633,3588.6,3588.0,1.23155824]
[1732885083208,0.4317,3589.4,3589.3,0.2785]
[1732885083502,3.50215,3589.5,3589.4,0.2785]
[1732885083503,0.01586,3589.5,3589.4,0.2785]
[1732885083695,0.2785,3589.4,3589.3,42.03155824]
[1732885083895,0.2785,3589.4,3589.3,40.8]
[1732885084099,0.7102,3589.4,3589.3,40.8]
[1732885084297,0.7102,3589.4,3589.3,41.0785]
[1732885084602,0.4317,3589.4,3589.3,41.0785]
[1732885085200,0.01586,3589.5,3589.4,0.2785]
[1732885085401,0.01586,3589.5,3589.4,1.51005824]
[1732885086202,0.01586,3589.5,3589.4,0.7139]
[1732885087105,0.01586,3589.5,3589.4,4.5917]
[1732885087300,0.01586,3589.5,3589.4,1.3839]
[1732885087507,0.01586,3589.5,3589.4,4.5917]
[1732885087813,0.01586,3589.5,3589.4,1.3839]
[1732885088105,3.44242137,3590.4,3589.4,1.1054]
[1732885088106,3.2078,3590.4,3589.4,1.1054]
[1732885088294,3.2078,3590.4,3589.7,2.54307616]
[1732885088499,0.27843,3590.3,3590.1,0.27844]
[1732885088699,0.27843,3590.3,3589.8,0.4078]
[1732885088908,3.2078,3590.4,3589.9,0.499]
[1732885089402,0.27844,3590.2,3590.0,0.27845]
[1732885089702,3.2078,3590.4,3589.9,0.499]
[1732885089703,0.27844,3590.1,3589.9,0.499]
[1732885089903,0.27845,3590.0,3589.9,0.499]
[1732885090202,3.6176,3590.0,3589.0,2.54307616]
[1732885090404,3.6176,3590.0,3589.0,3.34939616]
[1732885090707,3.6176,3590.0,3589.8,0.27846]
[1732885090908,0.27846,3589.9,3589.8,0.27846]
[1732885091297,3.6176,3590.0,3589.8,0.27846]
[1732885091609,3.6176,3590.0,3589.4,2.54307616]
[1732885091803,3.89605,3590.0,3589.9,0.27846]
[1732885092011,2.54307616,3591.0,3589.4,3.79307616]
[1732885092012,3.2078,3590.7,3589.7,2.54307616]
[1732885092200,0.27841,3590.5,3590.4,0.27842]
[1732885092405,3.2078,3590.7,3590.1,2.54307616]
[1732885092704,3.2078,3590.7,3590.3,0.27842]
[1732885092904,0.27842,3590.4,3590.2,0.27843]
[1732885093097,3.2078,3590.3,3589.7,2.54307616]
[1732885093304,0.27844,3590.2,3589.8,0.4473]
[1732885093503,0.27844,3590.2,3590.0,0.27844]
[1732885093901,3.48623,3590.3,3590.2,0.27843]
[1732885094104,3.2078,3590.3,3589.8,0.4473]
[1732885094307,3.48623,3590.3,3590.2,0.27843]
[1732885094701,3.2078,3590.3,3590.2,0.27843]
[1732885095804,0.27841,3590.5,3589.8,1.14347]
[1732885096004,0.27842,3590.4,3590.3,0.27842]
[1732885096801,0.2784,3590.6,3590.2,0.27843]
[1732885097007,0.27841,3590.5,3590.4,0.27841]
[1732885097415,3.2078,3590.7,3590.6,0.2784]
[1732885098906,0.27841,3590.5,3590.4,0.27841]
[1732885099112,3.2078,3590.7,3589.9,0.8295]
[1732885099408,3.4862,3590.7,3590.6,0.2784]
[1732885099608,3.4862,3590.7,3590.6,0.26948031]
[1732885099911,3.2078,3590.7,3590.6,0.26948031]
[1732885100205,3.4862,3590.7,3590.6,0.26948031]
[1732885100406,3.2078,3590.7,3590.6,0.26948031]
[1732885102708,1.15258,3591.0,3590.9,0.27838]
[1732885102906,1.15258,3591.0,3590.9,41.07838]
[1732885104418,0.4321,3591.2,3590.9,43.34307616]
[1732885104710,0.4321,3591.2,3591.1,0.27836]
[1732885106821,0.71046,3591.2,3591.1,0.27836]
[1732885107117,0.27835,3591.3,3591.2,0.27835]
[1732885108515,0.72384,3591.4,3591.3,0.27835]
[1732885108715,0.4455,3591.4,3591.3,0.27835]
[1732885109015,0.4455,3591.4,3591.0,1.56813]
[1732885109016,0.27836,3591.1,3591.0,0.70287]
[1732885109212,3.2078,3591.1,3590.3,2.54307616]
[1732885109416,0.4417,3591.0,3590.3,2.72307616]
[1732885109724,0.27839,3590.8,3590.7,0.27839]
[1732885110018,0.2784,3590.7,3590.6,0.27839]
[1732885110220,0.4092,3590.9,3590.6,0.19]
[1732885110421,3.4862,3590.7,3590.6,0.19]
[1732885110613,3.4862,3590.7,3589.8,0.25]
[1732885110614,0.27846,3589.9,3589.8,0.52846]
[1732885110919,3.48625,3590.0,3589.9,0.27846]
[1732885111420,3.2078,3590.0,3589.9,0.27846]
[1732885111811,3.48625,3590.0,3589.9,0.27846]
[1732885112022,3.2078,3590.0,3589.9,0.27846]
[1732885112214,0.4389,3590.6,3590.0,0.69612]
[1732885112519,0.4389,3590.6,3590.5,0.27841]
[1732885114121,0.7173,3590.6,3590.5,0.27841]
[1732885114315,0.4389,3590.6,3590.5,0.27841]
[1732885115115,0.2784,3590.7,3590.4,2.54307616]
[1732885115312,3.92649,3590.8,3590.7,0.2784]
[1732885115511,3.6481,3590.8,3590.7,0.2784]
[1732885115718,3.2078,3590.8,3590.7,0.2784]
[1732885116121,3.2078,3590.8,3590.7,41.0784]
[1732885116714,3.48619,3590.8,3590.7,41.0784]
[1732885119921,3.2078,3590.8,3590.7,41.0784]
[1732885120622,3.48619,3590.8,3590.7,41.0784]
[1732885121216,3.48619,3590.8,3590.7,40.8]
[1732885122521,3.48619,3590.8,3590.7,41.0784]
[1732885122717,3.48619,3590.8,3590.7,40.8]
[1732885123315,3.48619,3590.8,3590.7,41.0784]
[1732885126023,3.48619,3590.8,3590.7,40.8]
[1732885126621,3.48619,3590.8,3590.7,41.0784]
[1732885127129,3.48619,3590.8,3590.7,40.8]
[1732885127925,3.48619,3590.8,3590.7,41.0784]
[1732885129030,3.2078,3590.8,3590.7,41.0784]
[1732885131021,0.27837,3591.0,3590.9,0.27838]
[1732885131323,7.56294465,3591.1,3590.8,0.4447]
[1732885131526,3.2078,3591.2,3591.1,0.27836]
[1732885131527,11.04910465,3591.2,3591.1,0.27836]
[1732885132430,3.48616,3591.2,3591.1,0.27836]
[1732885132728,11.09774124,3591.2,3591.1,0.27836]
[1732885133228,3.48616,3591.2,3591.1,0.27836]
[1732885133430,11.09798101,3591.2,3591.1,0.27836]
[1732885133725,3.2078,3591.2,3591.1,0.27836]
[1732885136126,3.2078,3591.2,3591.1,2.82143616]
[1732885140326,7.61182101,3592.0,3591.9,0.2783]
[1732885140529,8.05302101,3592.2,3592.1,0.27829]
[1732885140726,0.4412,3592.2,3592.1,0.27829]
[1732885140924,0.4412,3592.2,3592.1,41.07829]
[1732885142228,0.71948,3592.2,3592.1,41.07829]
[1732885142927,8.33049284,3592.2,3592.1,41.07829]
[1732885143530,8.32784101,3592.2,3592.1,41.07829]
[1732885144539,0.71948,3592.2,3592.1,41.07829]
[1732885145628,0.4412,3592.2,3592.1,41.07829]
[1732885146129,7.60836101,3592.3,3592.2,0.27828]
[1732885146433,10.81616101,3592.5,3592.2,2.54307616]
[1732885146627,3.2078,3592.5,3592.4,0.27826]
[1732885147031,3.2078,3592.5,3592.4,41.07826]
[1732885147226,7.60836101,3592.7,3592.6,0.27825]
[1732885147436,8.66652041,3592.9,3592.4,40.8]
[1732885147437,7.60836101,3592.8,3592.7,0.27824]
[1732885147734,0.27825,3592.7,3592.6,0.27824]
[1732885148034,7.60836101,3592.8,3592.5,0.4474]
[1732885148431,7.88660101,3592.8,3592.7,0.27824]
[1732885148937,7.60836101,3592.8,3592.7,0.27824]
[1732885149138,8.30789101,3592.9,3592.8,0.27823]
[1732885150641,0.27825,3592.7,3592.6,0.27824]
[1732885151336,0.27825,3592.7,3592.5,0.4474]
[1732885151337,0.27825,3592.6,3592.5,0.72565]
[1732885151530,0.27825,3592.6,3592.5,0.27825]
[1732885151934,0.27825,3592.6,3592.2,0.4134]
[1732885151935,0.4213,3592.9,3592.2,0.4134]
[1732885152231,0.27828,3592.4,3592.3,0.27827]
[1732885152437,0.27828,3592.4,3592.3,0.87827]
[1732885152837,3.2078,3592.6,3592.5,0.27826]
[1732885153033,0.27824,3592.8,3592.7,0.27823]
[1732885153232,0.4213,3592.9,3592.6,0.8629]
[1732885153437,0.69953,3592.9,3592.8,0.27823]
[1732885154640,0.27824,3592.7,3592.6,1.14114]
[1732885155126,0.27824,3592.7,3592.1,41.49571]
[1732885155127,0.4213,3592.9,3592.1,41.49571]
[1732885155332,0.27826,3592.5,3592.4,0.27825]
[1732885155531,0.27825,3592.6,3592.5,0.27824]
[1732885157737,1.11688,3592.9,3592.2,3.39857616]
[1732885157939,0.27827,3592.5,3592.4,0.27825]
[1732885158835,0.27828,3592.2,3592.1,41.07828]
[1732885159139,0.27828,3592.2,3592.1,41.77828]
[1732885161136,0.27828,3592.2,3592.1,41.07828]
[1732885161837,0.27828,3592.2,3592.1,40.8]
[1732885162144,0.27828,3592.2,3592.1,41.07829]
[1732885162743,0.27828,3592.2,3592.1,40.8]
[1732885165840,0.27828,3592.2,3592.1,41.07829]
[1732885166444,0.27828,3592.2,3592.1,40.8]
[1732885166745,0.27828,3592.2,3592.1,41.07829]
[1732885167738,0.27828,3592.2,3592.1,40.8]
[1732885168341,0.27828,3592.2,3592.1,41.07829]
[1732885168741,0.27828,3592.2,3592.1,40.8]
[1732885168941,3.48608,3592.2,3592.1,40.8]
[1732885169140,0.27834,3591.4,3591.3,0.4109]
[1732885169346,0.27834,3591.4,3591.3,0.68925]
[1732885169545,0.27834,3591.4,3591.3,0.27835]
[1732885170044,0.27836,3591.2,3591.1,0.27835]
[1732885170541,0.27836,3591.2,3591.1,41.07835]
[1732885171146,0.27836,3591.2,3591.1,40.8]
[1732885174148,0.27836,3591.2,3590.5,3.38497616]
[1732885174450,0.2784,3590.7,3590.6,0.2784]
[1732885174843,0.2784,3590.7,3590.6,41.0784]
[1732885175044,0.2784,3590.7,3590.6,40.8]
[1732885175748,0.2784,3590.7,3590.6,41.0784]
[1732885175942,0.2784,3590.7,3590.6,40.8]
[1732885177350,0.2784,3590.7,3590.6,41.0784]
[1732885177855,0.2784,3590.7,3590.6,40.8]
[1732885178150,0.43,3590.8,3589.3,2.23432644]
[1732885178343,0.27847,3589.8,3589.7,0.27847]
[1732885178553,0.27848,3589.6,3589.5,0.27848]
[1732885180251,0.8571,3590.0,3589.1,0.8526]
[1732885180447,0.27848,3589.7,3589.6,0.27847]
[1732885180650,0.8571,3590.0,3589.6,40.8]
[1732885180850,0.27847,3589.7,3589.6,41.07848]
[1732885181350,0.27847,3589.8,3589.7,0.27847]
[1732885181652,0.27847,3589.7,3589.6,41.07848]
[1732885181958,0.27847,3589.7,3589.6,40.8]
[1732885182456,0.27846,3589.9,3589.8,0.27846]
[1732885182856,0.8571,3590.0,3589.7,0.4475]
[1732885183050,0.27846,3589.8,3589.7,0.72597]
[1732885183250,0.8571,3590.0,3589.7,0.4475]
[1732885183453,8.40017616,3590.0,3589.0,3.2078]
[1732885183756,3.2078,3589.6,3589.0,3.6439]
[1732885184059,3.2078,3589.6,3588.5,0.835]
[1732885184060,3.48631,3589.2,3589.1,40.8]
[1732885185051,0.27853,3589.0,3588.9,0.27853]
[1732885185452,0.27853,3589.0,3588.9,41.07853]
[1732885186857,0.27853,3589.1,3589.0,0.27852]
[1732885187156,3.2078,3589.2,3589.1,0.27852]
[1732885187354,0.4122,3589.4,3588.9,40.8]
[1732885187658,0.27852,3589.2,3589.1,0.27852]
[1732885188353,0.4122,3589.4,3588.9,40.8]
[1732885188556,0.27852,3589.1,3589.0,0.27852]
[1732885189651,0.27853,3589.0,3588.9,41.07853]
[1732885190853,0.27852,3589.2,3589.1,0.27852]
[1732885192053,0.27853,3589.0,3588.9,41.07853]
[1732885193159,0.27853,3589.0,3588.9,40.8]
[1732885193557,0.27853,3589.0,3588.9,41.07854]
[1732885197762,0.4247,3589.3,3588.9,40.8]
[1732885198058,0.27852,3589.2,3589.1,0.27851]
[1732885199359,0.27853,3589.1,3589.0,0.27852]
[1732885200254,0.4247,3589.3,3588.9,40.8]
[1732885200456,0.4122,3589.4,3588.9,40.8]
[1732885200658,0.69634,3589.0,3588.5,0.4181]
[1732885200860,0.27857,3588.4,3588.3,0.4378]
[1732885201064,0.2786,3588.1,3588.0,41.218]
[1732885201260,0.2786,3588.1,3588.0,41.4966]
[1732885201560,3.2078,3588.2,3587.7,0.27863]
[1732885201761,3.6564,3588.2,3587.5,0.418]
[1732885201964,0.27861,3588.1,3588.0,0.2786]
[1732885202765,3.6564,3588.2,3588.1,0.2786]
[1732885203066,0.2786,3588.2,3588.1,0.27859]
[1732885203363,0.4347,3588.3,3587.7,40.8]
[1732885203573,0.2786,3588.2,3588.1,0.27859]
[1732885204368,0.4347,3588.3,3588.2,0.27859]
[1732885204568,0.4347,3588.3,3587.9,0.69654]
[1732885204569,3.658,3588.6,3587.9,0.69654]
[1732885204770,3.2078,3588.6,3588.5,0.27857]
[1732885205462,3.48636,3588.6,3588.5,41.07857]
[1732885206169,3.48636,3588.6,3588.5,40.8]
[1732885206872,3.48636,3588.6,3588.5,41.07857]
[1732885207571,3.48636,3588.6,3588.5,40.8]
[1732885208068,3.2078,3588.6,3588.4,0.27857]
[1732885208272,3.2078,3588.6,3587.9,1.13073]
[1732885208273,0.27859,3588.3,3588.2,0.27858]
[1732885208472,0.4214,3588.5,3587.6,0.8673]
[1732885208664,0.4214,3588.5,3587.7,40.8]
[1732885208867,0.69998,3588.5,3588.4,0.27857]
[1732885209074,0.27856,3588.7,3588.6,0.27855]
[1732885209269,0.4098,3588.8,3588.7,0.27855]
[1732885210279,3.48633,3589.0,3588.9,0.27854]
[1732885210967,0.27857,3588.6,3588.5,0.27856]
[1732885211174,0.27857,3588.6,3588.3,3.2078]
[1732885211175,0.27856,3588.7,3588.6,0.27855]
[1732885212376,0.27856,3588.7,3588.2,1.97027]
[1732885212377,0.27858,3588.3,3588.2,1.14588]
[1732885212668,0.27858,3588.3,3588.2,1.33588]
[1732885213274,0.27858,3588.3,3588.2,1.14588]
[1732885214473,3.2078,3588.5,3588.2,0.8673]
[1732885214672,0.27858,3588.4,3588.3,0.27857]
[1732885215973,3.2078,3588.5,3588.2,0.8673]
[1732885216179,3.48637,3588.5,3588.4,0.27857]
[1732885216873,3.2078,3588.5,3588.4,0.27857]
[1732885217673,3.48637,3588.5,3588.4,0.27857]
[1732885218084,3.2078,3588.5,3588.4,0.27857]
[1732885219082,0.27854,3588.9,3588.8,0.27854]
[1732885219083,3.2078,3588.9,3588.8,0.27854]
[1732885219274,3.2078,3588.9,3588.8,0.88854]
[1732885219471,3.48634,3588.9,3588.8,0.61]
[1732885219676,4.34944,3588.9,3588.8,0.61]
[1732885219877,4.0709,3588.9,3588.4,40.8]
[1732885220079,2.54307616,3588.8,3588.2,0.8673]
[1732885220273,0.27858,3588.3,3588.2,0.8673]
[1732885220477,0.27858,3588.3,3588.2,0.27858]
[1732885220478,0.27859,3588.3,3588.2,0.27858]
[1732885220784,0.27861,3588.1,3588.0,0.27859]
[1732885220982,0.7158,3588.2,3588.1,0.2786]
[1732885222883,3.6337,3588.9,3588.0,3.2078]
[1732885223083,3.6337,3588.9,3588.8,0.27854]
[1732885223084,3.48634,3588.9,3588.8,0.27854]
[1732885224082,3.2078,3588.9,3588.8,0.27854]
[1732885225885,3.2078,3589.3,3589.2,0.27851]
[1732885232386,3.2078,3589.3,3589.1,0.4388]
[1732885232387,0.4415,3589.5,3589.1,0.4388]
[1732885232593,3.2078,3589.7,3589.6,0.27848]
[1732885232786,0.4232,3590.0,3589.6,0.27848]
[1732885232988,0.4232,3590.0,3589.9,0.27846]
[1732885233181,0.4232,3590.0,3589.9,41.07846]
[1732885233789,0.4232,3590.0,3589.7,0.853]
[1732885233790,0.27847,3589.9,3589.8,0.27846]
[1732885234004,11.23936101,3590.0,3589.2,0.4383]
[1732885234182,0.2785,3589.5,3589.4,0.27849]
[1732885234490,3.2078,3589.6,3589.5,0.27849]
[1732885234491,3.48629,3589.6,3589.5,0.27849]
[1732885234689,3.2078,3589.6,3589.5,0.27849]
[1732885234892,0.27846,3589.9,3589.8,0.27847]
[1732885235086,4.42026,3590.0,3589.9,0.27846]
[1732885235281,0.27845,3590.1,3589.6,0.6962]
[1732885235485,0.27845,3590.1,3590.0,0.27845]
[1732885235985,8.03606101,3590.2,3589.6,1.1067]
[1732885235986,0.70614,3590.2,3590.1,0.27844]
[1732885238282,0.70614,3590.2,3589.9,0.27845]
[1732885238283,0.27846,3590.0,3589.9,0.27845]
[1732885238689,3.48626,3590.0,3589.9,0.27845]
[1732885239194,3.2078,3590.0,3589.9,0.27845]
[1732885240498,0.4277,3590.2,3590.1,0.27844]
[1732885241099,0.70614,3590.2,3590.1,0.27844]
[1732885243807,0.4277,3590.2,3590.1,0.27844]
[1732885244011,0.27844,3590.2,3590.1,0.27844]
[1732885244209,0.27843,3590.4,3590.3,0.27842]
[1732885246511,0.71873,3590.4,3590.3,0.27842]
[1732885247012,0.71872,3590.4,3590.3,0.27842]
[1732885247410,0.4403,3590.4,3590.3,0.27842]
[1732885247809,0.71872,3590.4,3590.3,0.27842]
[1732885249113,0.27846,3590.0,3589.9,0.27845]
[1732885249415,0.27846,3589.9,3589.8,0.69666]
[1732885249613,0.70876,3589.9,3589.8,0.69666]
[1732885250012,0.4303,3589.9,3589.8,0.69666]
[1732885250314,10.15143717,3590.4,3590.2,0.27844]
[1732885250315,0.27844,3590.3,3590.2,0.27844]
[1732885250808,0.27844,3590.3,3589.9,0.27845]
[1732885250809,0.27846,3590.0,3589.9,0.27845]
[1732885251111,0.27846,3589.9,3589.8,0.4182]
[1732885251308,0.8613,3589.9,3589.1,3.9041]
[1732885251511,0.27851,3589.4,3589.3,0.27849]
[1732885251716,0.4319,3589.8,3589.2,0.4313]
[1732885252014,0.27849,3589.6,3589.5,0.27848]
[1732885252810,3.2078,3589.6,3589.3,40.8]
[1732885253011,0.2785,3589.5,3589.4,0.27849]
[1732885253506,0.27851,3589.4,3589.3,0.2785]
[1732885253712,0.27851,3589.4,3589.3,41.0785]
[1732885254314,0.27851,3589.4,3589.3,40.8]
[1732885254817,0.27851,3589.4,3589.0,0.27852]
[1732885254818,0.27852,3589.1,3589.0,0.27852]
[1732885255216,0.27852,3589.1,3589.0,41.07852]
[1732885255816,3.2078,3589.2,3588.9,0.27853]
[1732885255817,0.27854,3589.0,3588.9,0.27853]
[1732885256215,0.27853,3589.1,3589.0,0.27852]
[1732885256420,3.6191,3589.2,3588.9,40.8]
[1732885256717,0.27853,3589.0,3588.9,41.07853]
[1732885257112,0.27853,3589.1,3588.9,40.8]
[1732885257318,0.27853,3589.1,3589.0,0.27852]
[1732885257722,3.6191,3589.2,3588.9,40.8]
[1732885258019,0.27853,3589.0,3588.9,40.8]
[1732885258217,0.27853,3589.0,3588.9,41.07854]
[1732885258719,0.27853,3589.0,3588.9,0.27854]
[1732885259118,0.27853,3589.1,3589.0,0.27852]
[1732885261311,0.27853,3589.1,3589.0,41.07852]
[1732885262128,3.48633,3589.1,3589.0,41.07852]
[1732885263023,3.48633,3589.1,3588.7,0.8707]
[1732885263320,0.27854,3588.8,3588.7,0.4381]
[1732885263615,3.48633,3589.1,3588.3,0.4082]
[1732885263616,3.48633,3589.1,3588.4,0.4237]
[1732885263820,0.27857,3588.5,3588.4,0.4237]
[1732885264015,3.6425,3588.7,3588.3,0.27858]
[1732885264215,3.2078,3588.7,3588.2,0.437]
[1732885264526,3.2078,3588.7,3588.6,0.27856]
[1732885265421,3.2078,3588.7,3588.6,41.07856]
[1732885265820,3.48633,3589.1,3589.0,0.27853]
[1732885267519,3.2078,3589.1,3589.0,0.27853]